[Event "XIII Mediterranean Championship 2023"]
[Site "Castell-Platja d Aro"]
[Date "2023.11.07"]
[Round "5.28"]
[White "Vidal Palou, Jordi"]
[Black "Hernando Rodrigo, Inmaculada"]
[Result "1-0"]
[ECO "A45"]
[WhiteElo "1620"]
[BlackElo "1734"]
[Annotator "NA RC"]
[PlyCount "99"]
[EventDate "2023.10.26"]
[EventType "swiss"]
[EventCountry "ESP"]
[SourceTitle "playchess.com"]
[Source "ChessBase"]
[SourceQuality "1"]
[TimeControl "5400+30"]

1. d4 {[%emt 1:31:00]} Nf6 {[%emt 1:31:00]} 2. Bf4 {[%emt 0:00:30]} d6 {[%emt 0:00:30]} 3. e3 {[%emt 0:00:30]} Bf5 {[%emt 0:00:30]} 4. Bd3 {[%emt 0:00:30]} Bxd3 {[%emt 0:00:30]} 5. Qxd3 {[%emt 0:00:30]} Nbd7 {[%emt 0:00:30]} 6. Nf3 {[%emt 0:00:30]} c5 {[%emt 0:00:30]} 7. c3 {[%emt 0:00:30]} g6 {[%emt 0:00:30]} 8. Nbd2 {[%emt 0:00:30]} Bg7 {[%emt 0:00:30]} 9. h3 {[%emt 0:00:30]} O-O {[%emt 0:00:30]} 10. Ne4 {[%emt 0:00:30]} Nxe4 {[%emt 0:00:30]} 11. Qxe4 {[%emt 0:00:30]} b5 {[%emt 0:00:30]} 12. O-O {[%emt 0:00:30]} a5 {[%emt 0:00:30]} 13. dxc5 {[%emt 0:00:30]} Nxc5 {[%emt 0:00:30]} 14. Qd5 {[%emt 0:00:30]} b4 {[%emt 0:00:30]} 15. Rac1 {[%emt 0:00:30]} bxc3 {[%emt 0:00:30]} 16. bxc3 {[%emt 0:00:30]} Rb8 {[%emt 0:00:30]} 17. e4 {[%emt 0:00:30]} Na4 {[%emt 0:00:30]} 18. e5 {[%emt 0:00:30]} dxe5 {[%emt 0:00:30]} 19. Qxd8 {[%emt 0:00:30]} Rfxd8 {[%emt 0:00:30]} 20. Bxe5 {[%emt 0:00:30]} Bxe5 {[%emt 0:00:30]} 21. Nxe5 {[%emt 0:00:30]} Rbc8 {[%emt 0:00:30]} 22. c4 {[%emt 0:00:30]} Rc5 {[%emt 0:00:30]} 23. Ng4 {[%emt 0:00:30]} Rd2 {[%emt 0:00:30]} 24. Rfe1 {[%emt 0:00:30]} h5 {[%emt 0:00:30]} 25. Ne5 {[%emt 0:00:30]} Nb2 {[%emt 0:00:30]} 26. Nf3 {[%emt 0:00:30]} Rd7 {[%emt 0:00:30]} 27. Rc2 {[%emt 0:00:30]} Nd3 {[%emt 0:00:30]} 28. Rb1 {[%emt 0:00:30]} Nb4 {[%emt 0:00:30]} 29. Rcb2 {[%emt 0:00:30]} e5 {[%emt 0:00:30]} 30. a3 {[%emt 0:00:30]} Nd3 {[%emt 0:00:30]} 31. Rb5 {[%emt 0:00:30]} Rxc4 {[%emt 0:00:30]} 32. Rxa5 {[%emt 0:00:30]} e4 {[%emt 0:00:30]} 33. Nd2 {[%emt 0:00:30]} Rcd4 {[%emt 0:00:30]} 34. Ra8+ {[%emt 0:00:30]} Kg7 {[%emt 0:00:30]} 35. Nb3 {[%emt 0:00:30]} Rb7 {[%emt 0:00:30]} 36. Nxd4 {[%emt 0:00:30]} Rxb1+ {[%emt 0:00:30]} 37. Kh2 {[%emt 0:00:30]} Nxf2 {[%emt 0:00:30]} 38. Kg3 {[%emt 0:00:30]} e3 {[%emt 0:00:30]} 39. a4 {[%emt 0:00:30]} Rb4 {[%emt 0:00:30]} 40. Ne2 {[%emt 0:00:30]} f5 {[%emt 0:00:30]} 41. Kf3 {[%emt 0:00:30]} Nd3 {[%emt 0:00:30]} 42. Kxe3 {[%emt 0:00:30]} Nc5 {[%emt 0:00:30]} 43. a5 {[%emt 0:00:30]} Re4+ {[%emt 0:00:30]} 44. Kd2 {[%emt 0:00:30]} Ra4 {[%emt 0:00:30]} 45. Kc3 {[%emt 0:00:30]} Kf6 {[%emt 0:00:30]} 46. h4 {[%emt 0:00:30]} Rxh4 {[%emt 0:00:30]} 47. Nd4 {[%emt 0:00:30]} Ne6 {[%emt 0:00:30]} 48. Ra6 {[%emt 0:00:30]} Ke5 {[%emt 0:00:30]} 49. Nf3+ {[%emt 0:00:30]} Kd5 {[%emt 0:00:30]} 50. Nxh4 {[%emt 0:00:30]} 1-0

[Event "XIII Mediterranean Championship 2023"]
[Site "Castell-Platja d Aro"]
[Date "2023.11.07"]
[Round "5.29"]
[White "Hernando Rodrigo, Lourdes"]
[Black "Giro Castellet, Esteve"]
[Result "0-1"]
[ECO "D02"]
[WhiteElo "1625"]
[BlackElo "1633"]
[Annotator "NA RC"]
[PlyCount "98"]
[EventDate "2023.10.26"]
[EventType "swiss"]
[EventCountry "ESP"]
[SourceTitle "playchess.com"]
[Source "ChessBase"]
[SourceQuality "1"]
[TimeControl "5400+30"]

1. d4 {[%emt 1:31:00]} d5 {[%emt 1:31:00]} 2. Bf4 {[%emt 0:00:30]} Nf6 {[%emt 0:00:30]} 3. e3 {[%emt 0:00:30]} Nbd7 {[%emt 0:00:30]} 4. Nf3 {[%emt 0:00:30]} e6 {[%emt 0:00:30]} 5. Bd3 {[%emt 0:00:30]} Be7 {[%emt 0:00:30]} 6. Nbd2 {[%emt 0:00:30]} O-O {[%emt 0:00:30]} 7. Ne5 {[%emt 0:00:30]} c5 {[%emt 0:00:30]} 8. c3 {[%emt 0:00:30]} Re8 {[%emt 0:00:30]} 9. O-O {[%emt 0:00:30]} Nf8 {[%emt 0:00:30]} 10. Qf3 {[%emt 0:00:30]} Bd7 {[%emt 0:00:30]} 11. Rac1 {[%emt 0:00:30]} Qb6 {[%emt 0:00:30]} 12. Bb1 {[%emt 0:00:30]} Rac8 {[%emt 0:00:30]} 13. Bg5 {[%emt 0:00:30]} Bb5 {[%emt 0:00:30]} 14. Rfe1 {[%emt 0:00:30]} N8d7 {[%emt 0:00:30]} 15. Bxf6 {[%emt 0:00:30]} Nxf6 {[%emt 0:00:30]} 16. Qh3 {[%emt 0:00:30]} Rf8 {[%emt 0:00:30]} 17. Ndf3 {[%emt 0:00:30]} h6 {[%emt 0:00:30]} 18. b3 {[%emt 0:00:30]} Bc6 {[%emt 0:00:30]} 19. Nxc6 {[%emt 0:00:30]} Rxc6 {[%emt 0:00:30]} 20. Ne5 {[%emt 0:00:30]} Rc7 {[%emt 0:00:30]} 21. f4 {[%emt 0:00:30]} Ne4 {[%emt 0:00:30]} 22. f5 {[%emt 0:00:30]} Bf6 {[%emt 0:00:30]} 23. Ng4 {[%emt 0:00:30]} exf5 {[%emt 0:00:30]} 24. Ne5 {[%emt 0:00:30]} Qe6 {[%emt 0:00:30]} 25. Rf1 {[%emt 0:00:30]} Bxe5 {[%emt 0:00:30]} 26. dxe5 {[%emt 0:00:30]} Qxe5 {[%emt 0:00:30]} 27. Rxf5 {[%emt 0:00:30]} Qe6 {[%emt 0:00:30]} 28. Qf3 {[%emt 0:00:30]} Re7 {[%emt 0:00:30]} 29. Rd1 {[%emt 0:00:30]} Nxc3 {[%emt 0:00:30]} 30. Rc1 {[%emt 0:00:30]} Nxb1 {[%emt 0:00:30]} 31. Rxb1 {[%emt 0:00:30]} Rd8 {[%emt 0:00:30]} 32. Rc1 {[%emt 0:00:30]} b6 {[%emt 0:00:30]} 33. Rd1 {[%emt 0:00:30]} g6 {[%emt 0:00:30]} 34. Rfxd5 {[%emt 0:00:30]} Rxd5 {[%emt 0:00:30]} 35. Rxd5 {[%emt 0:00:30]} Rd7 {[%emt 0:00:30]} 36. e4 {[%emt 0:00:30]} Rxd5 {[%emt 0:00:30]} 37. exd5 {[%emt 0:00:30]} Qe1+ {[%emt 0:00:30]} 38. Qf1 {[%emt 0:00:30]} Qxf1+ {[%emt 0:00:30]} 39. Kxf1 {[%emt 0:00:30]} Kf8 {[%emt 0:00:30]} 40. Ke2 {[%emt 0:00:30]} Ke7 {[%emt 0:00:30]} 41. Kd3 {[%emt 0:00:30]} Kd6 {[%emt 0:00:30]} 42. Ke4 {[%emt 0:00:30]} f5+ {[%emt 0:00:30]} 43. Kf4 {[%emt 0:00:30]} Kxd5 {[%emt 0:00:30]} 44. g4 {[%emt 0:00:30]} fxg4 {[%emt 0:00:30]} 45. Kxg4 {[%emt 0:00:30]} b5 {[%emt 0:00:30]} 46. Kf4 {[%emt 0:00:30]} c4 {[%emt 0:00:30]} 47. bxc4+ {[%emt 0:00:30]} bxc4 {[%emt 0:00:30]} 48. Ke3 {[%emt 0:00:30]} g5 {[%emt 0:00:30]} 49. a3 {[%emt 0:00:30]} h5 {[%emt 0:00:30]} 0-1

[Event "XIII Mediterranean Championship 2023"]
[Site "Castell-Platja d Aro"]
[Date "2023.11.07"]
[Round "5.30"]
[White "Delbos, Jean-Louis"]
[Black "Parramon Arimany, Marc"]
[Result "0-1"]
[ECO "B21"]
[WhiteElo "1573"]
[BlackElo "1834"]
[Annotator "NA RC"]
[PlyCount "100"]
[EventDate "2023.10.26"]
[EventType "swiss"]
[EventCountry "ESP"]
[SourceTitle "playchess.com"]
[Source "ChessBase"]
[SourceQuality "1"]
[TimeControl "5400+30"]

1. e4 {[%emt 1:31:00]} c5 {[%emt 1:31:00]} 2. d4 {[%emt 0:00:30]} cxd4 {[%emt 0:00:30]} 3. c3 {[%emt 0:00:30]} d3 {[%emt 0:00:30]} 4. Bxd3 {[%emt 0:00:30]} Nc6 {[%emt 0:00:30]} 5. Nf3 {[%emt 0:00:30]} d6 {[%emt 0:00:30]} 6. O-O {[%emt 0:00:30]} Bg4 {[%emt 0:00:30]} 7. Be2 {[%emt 0:00:30]} Nf6 {[%emt 0:00:30]} 8. Qb3 {[%emt 0:00:30]} Qc7 {[%emt 0:00:30]} 9. Ng5 {[%emt 0:00:30]} e5 {[%emt 0:00:30]} 10. Bxg4 {[%emt 0:00:30]} Nxg4 {[%emt 0:00:30]} 11. Na3 {[%emt 0:00:30]} Rd8 {[%emt 0:00:30]} 12. Ne6 {[%emt 0:00:30]} fxe6 {[%emt 0:00:30]} 13. Qxe6+ {[%emt 0:00:30]} Be7 {[%emt 0:00:30]} 14. Qxg4 {[%emt 0:00:30]} O-O {[%emt 0:00:30]} 15. Be3 {[%emt 0:00:30]} b6 {[%emt 0:00:30]} 16. Rad1 {[%emt 0:00:30]} Rf6 {[%emt 0:00:30]} 17. Nb5 {[%emt 0:00:30]} Qb7 {[%emt 0:00:30]} 18. Qe2 {[%emt 0:00:30]} h6 {[%emt 0:00:30]} 19. f4 {[%emt 0:00:30]} a6 {[%emt 0:00:30]} 20. Na3 {[%emt 0:00:30]} Rdf8 {[%emt 0:00:30]} 21. f5 {[%emt 0:00:30]} b5 {[%emt 0:00:30]} 22. g4 {[%emt 0:00:30]} Nd8 {[%emt 0:00:30]} 23. g5 {[%emt 0:00:30]} hxg5 {[%emt 0:00:30]} 24. Bxg5 {[%emt 0:00:30]} Qb6+ {[%emt 0:00:30]} 25. Qf2 {[%emt 0:00:30]} Qxf2+ {[%emt 0:00:30]} 26. Kxf2 {[%emt 0:00:30]} Rxf5+ {[%emt 0:00:30]} 27. exf5 {[%emt 0:00:30]} Rxf5+ {[%emt 0:00:30]} 28. Ke2 {[%emt 0:00:30]} Rxg5 {[%emt 0:00:30]} 29. Nc2 {[%emt 0:00:30]} Ne6 {[%emt 0:00:30]} 30. Ne3 {[%emt 0:00:30]} Rh5 {[%emt 0:00:30]} 31. Nf5 {[%emt 0:00:30]} Rxh2+ {[%emt 0:00:30]} 32. Kf3 {[%emt 0:00:30]} Bf6 {[%emt 0:00:30]} 33. Rxd6 {[%emt 0:00:30]} Ng5+ {[%emt 0:00:30]} 34. Kg3 {[%emt 0:00:30]} Rxb2 {[%emt 0:00:30]} 35. Rxa6 {[%emt 0:00:30]} Rc2 {[%emt 0:00:30]} 36. Ra8+ {[%emt 0:00:30]} Kh7 {[%emt 0:00:30]} 37. Rh1+ {[%emt 0:00:30]} Kg6 {[%emt 0:00:30]} 38. Rf1 {[%emt 0:00:30]} Rxc3+ {[%emt 0:00:30]} 39. Kg4 {[%emt 0:00:30]} Rc4+ {[%emt 0:00:30]} 40. Kg3 {[%emt 0:00:30]} Ne4+ {[%emt 0:00:30]} 41. Kg2 {[%emt 0:00:30]} Rc2+ {[%emt 0:00:30]} 42. Kh3 {[%emt 0:00:30]} Rc3+ {[%emt 0:00:30]} 43. Kg2 {[%emt 0:00:30]} Kg5 {[%emt 0:00:30]} 44. a4 {[%emt 0:00:30]} g6 {[%emt 0:00:30]} 45. axb5 {[%emt 0:00:30]} gxf5 {[%emt 0:00:30]} 46. Rb1 {[%emt 0:00:30]} f4 {[%emt 0:00:30]} 47. Rg8+ {[%emt 0:00:30]} Kf5 {[%emt 0:00:30]} 48. b6 {[%emt 0:00:30]} f3+ {[%emt 0:00:30]} 49. Kf1 {[%emt 0:00:30]} Nd2+ {[%emt 0:00:30]} 50. Kf2 {[%emt 0:00:30]} Bh4+ {[%emt 0:00:30]} 0-1

[Event "XIII Mediterranean Championship 2023"]
[Site "Castell-Platja d Aro"]
[Date "2023.11.08"]
[Round "6.1"]
[White "Iermito, Sebastian"]
[Black "Garriga Cazorla, Pere"]
[Result "1/2-1/2"]
[ECO "A14"]
[WhiteElo "2521"]
[BlackElo "2459"]
[Annotator "RC"]
[PlyCount "102"]
[EventDate "2023.10.26"]
[EventType "swiss"]
[EventCountry "ESP"]
[SourceTitle "playchess.com"]
[Source "ChessBase"]
[SourceQuality "1"]
[TimeControl "5400+30"]

1. Nf3 {[%emt 0:00:01]} d5 {[%emt 0:01:18]} 2. g3 {[%emt 0:00:17]} Nf6 {[%emt 0:00:33]} 3. Bg2 {[%emt 0:00:07]} e6 {[%emt 0:00:35]} 4. c4 {[%emt 0:00:49]} Be7 {[%emt 0:01:16]} 5. O-O {[%emt 0:00:32]} O-O {[%emt 0:00:08]} 6. b3 {[%emt 0:00:28]} d4 {[%emt 0:00:39]} 7. e3 {[%emt 0:00:20]} c5 {[%emt 0:00:04]} 8. Ne5 {[%emt 0:00:39]} Nfd7 {[%emt 0:01:12]} 9. exd4 {[%emt 0:06:14]} cxd4 {[%emt 0:00:42]} 10. Nxd7 {[%emt 0:00:17]} Nxd7 {[%emt 0:01:28]} 11. d3 {[%emt 0:00:26]} e5 {[%emt 0:01:35]} 12. Re1 {[%emt 0:01:40]} Re8 {[%emt 0:01:52]} 13. Ba3 {[%emt 0:06:31]} Rb8 {[%emt 0:09:12]} 14. Bxe7 {[%emt 0:04:18]} Qxe7 {[%emt 0:02:13]} 15. Nd2 {[%emt 0:08:35]} Nf6 {[%emt 0:06:37]} 16. Ne4 {[%emt 0:16:10]} Bf5 {[%emt 0:05:23]} 17. Qe2 {[%emt 0:02:36]} Bxe4 {[%emt 0:09:45]} 18. Bxe4 {[%emt 0:00:08]} Qd6 {[%emt 0:00:37]} 19. Bg2 {[%emt 0:02:53]} g6 {[%emt 0:01:11]} 20. Qd2 {[%emt 0:03:16]} b5 {[%emt 0:06:56]} 21. Qa5 {[%emt 0:04:17]} bxc4 {[%emt 0:04:00]} 22. bxc4 {[%emt 0:00:18]} Nd7 {[%emt 0:00:38]} 23. Qxa7 {[%emt 0:03:51]} Nc5 {[%emt 0:00:27]} 24. Bd5 {[%emt 0:02:48]} Re7 {[%emt 0:00:21]} 25. Qa3 {[%emt 0:00:14]} Rb6 {[%emt 0:00:08]} 26. Red1 {[%emt 0:08:35]} Ra6 {[%emt 0:01:21]} 27. Qb4 {[%emt 0:00:32]} Rea7 {[%emt 0:00:46]} 28. Qe1 {[%emt 0:15:08]} Rxa2 {[%emt 0:02:21]} 29. Rxa2 {[%emt 0:01:26]} Rxa2 {[%emt 0:00:06]} 30. Rd2 {[%emt 0:04:01]} Ra3 {[%emt 0:02:53]} 31. Qe2 {[%emt 0:00:50]} Kg7 {[%emt 0:00:55]} 32. Kg2 {[%emt 0:00:31]} Qf6 {[%emt 0:00:38]} 33. Be4 {[%emt 0:02:24]} Qe7 {[%emt 0:01:52]} 34. Bd5 {[%emt 0:00:19]} Qg5 {[%emt 0:00:57]} 35. h4 {[%emt 0:05:44]} Qf5 {[%emt 0:00:34]} 36. Be4 {[%emt 0:00:07]} Nxe4 {[%emt 0:01:17]} 37. Qxe4 {[%emt 0:00:27]} Qxe4+ {[%emt 0:00:06]} 38. dxe4 {[%emt 0:00:01]} Rc3 {[%emt 0:00:04]} 39. f4 {[%emt 0:00:54]} Kf6 {[%emt 0:03:32]} 40. Ra2 {[%emt 0:00:13]} exf4 {[%emt 0:00:05]} 41. gxf4 {[%emt 0:00:05]} Rxc4 {[%emt 0:00:04]} 42. Ra6+ {[%emt 0:00:57]} Ke7 {[%emt 0:00:38]} 43. Ra7+ {[%emt 0:00:25]} Ke6 {[%emt 0:01:12]} 44. Ra6+ {[%emt 0:00:03]} Kd7 {[%emt 0:00:42]} 45. Ra7+ {[%emt 0:00:13]} Kc6 {[%emt 0:01:59]} 46. Kf2 {[%emt 0:01:47]} Rc2+ {[%emt 0:00:46]} 47. Ke1 {[%emt 0:00:32]} Rh2 {[%emt 0:00:37]} 48. Rxf7 {[%emt 0:00:08]} Rxh4 {[%emt 0:00:03]} 49. Kd2 {[%emt 0:00:25]} Rh3 {[%emt 0:00:04]} 50. f5 {[%emt 0:00:30]} gxf5 {[%emt 0:01:46]} 51. Rxf5 {[%emt 0:00:10]} Re3 {[%emt 0:31:52]} 1/2-1/2

[Event "XIII Mediterranean Championship 2023"]
[Site "Castell-Platja d Aro"]
[Date "2023.11.08"]
[Round "6.2"]
[White "Alexakis, Dimitris"]
[Black "Asis Gargatagli, Hipolito"]
[Result "1/2-1/2"]
[ECO "B55"]
[WhiteElo "2458"]
[BlackElo "2511"]
[Annotator "RC"]
[PlyCount "45"]
[EventDate "2023.10.26"]
[EventType "swiss"]
[EventCountry "ESP"]
[SourceTitle "playchess.com"]
[Source "ChessBase"]
[SourceQuality "1"]
[TimeControl "5400+30"]

1. e4 {[%emt 0:05:40]} c5 {[%emt 0:00:18]} 2. Nf3 {[%emt 0:00:53]} d6 {[%emt 0:00:12]} 3. d4 {[%emt 0:00:09]} cxd4 {[%emt 0:00:12]} 4. Nxd4 {[%emt 0:04:06]} Nf6 {[%emt 0:00:14]} 5. f3 {[%emt 0:00:09]} Nc6 {[%emt 0:00:51]} 6. c4 {[%emt 0:01:16]} Qb6 {[%emt 0:00:17]} 7. Nc2 {[%emt 0:00:40]} e6 {[%emt 0:00:16]} 8. Nc3 {[%emt 0:01:43]} Be7 {[%emt 0:00:24]} 9. Bd3 {[%emt 0:07:20]} Nd7 {[%emt 0:00:32]} 10. Rb1 {[%emt 0:03:22]} Bh4+ {[%emt 0:09:11]} 11. g3 {[%emt 0:00:13]} Be7 {[%emt 0:00:05]} 12. Be3 {[%emt 0:01:34]} Qc7 {[%emt 0:00:14]} 13. f4 {[%emt 0:05:52]} O-O {[%emt 0:04:10]} 14. O-O {[%emt 0:00:41]} b6 {[%emt 0:01:13]} 15. b4 {[%emt 0:13:06]} Bb7 {[%emt 0:01:58]} 16. g4 {[%emt 0:10:26]} a5 {[%emt 0:02:20]} 17. a3 {[%emt 0:05:42]} axb4 {[%emt 0:00:25]} 18. axb4 {[%emt 0:00:12]} g5 {[%emt 0:00:12]} 19. Nb5 {[%emt 0:10:11]} Qc8 {[%emt 0:22:16]} 20. Be2 {[%emt 0:05:08]} Ra2 {[%emt 0:06:54]} 21. Nc3 {[%emt 0:01:54]} Ra8 {[%emt 0:01:14]} 22. Nb5 {[%emt 0:05:54]} Ra2 {[%emt 0:04:16]} 23. Nc3 {[%emt 0:03:15]} 1/2-1/2

[Event "XIII Mediterranean Championship 2023"]
[Site "Castell-Platja d Aro"]
[Date "2023.11.08"]
[Round "6.3"]
[White "Gines Esteo, Pedro Antonio"]
[Black "Garcia Jimenez, Francisco Javier"]
[Result "1-0"]
[ECO "A25"]
[WhiteElo "2490"]
[BlackElo "2249"]
[Annotator "RC"]
[PlyCount "41"]
[EventDate "2023.10.26"]
[EventType "swiss"]
[EventCountry "ESP"]
[SourceTitle "playchess.com"]
[Source "ChessBase"]
[SourceQuality "1"]
[TimeControl "5400+30"]

1. c4 {[%emt 1:31:00]} e5 {[%emt 1:31:00]} 2. Nc3 {[%emt 0:00:30]} Nc6 {[%emt 0:00:30]} 3. g3 {[%emt 0:00:30]} g6 {[%emt 0:00:30]} 4. Bg2 {[%emt 0:00:30]} Bg7 {[%emt 0:00:30]} 5. d3 {[%emt 0:00:30]} d6 {[%emt 0:00:30]} 6. Rb1 {[%emt 0:00:30]} f5 {[%emt 0:00:30]} 7. e3 {[%emt 0:00:30]} Nh6 {[%emt 0:00:30]} 8. Nge2 {[%emt 0:00:30]} O-O {[%emt 0:00:30]} 9. O-O {[%emt 0:00:30]} Nf7 {[%emt 0:00:30]} 10. Qd2 {[%emt 0:00:30]} Ne7 {[%emt 0:00:30]} 11. f4 {[%emt 0:00:30]} c6 {[%emt 0:00:30]} 12. e4 {[%emt 0:00:30]} Be6 {[%emt 0:00:30]} 13. b3 {[%emt 0:00:30]} d5 {[%emt 0:00:30]} 14. exd5 {[%emt 0:00:30]} cxd5 {[%emt 0:00:30]} 15. Ba3 {[%emt 0:00:30]} dxc4 {[%emt 0:00:30]} 16. bxc4 {[%emt 0:00:30]} e4 {[%emt 0:00:30]} 17. Rfd1 {[%emt 0:00:30]} exd3 {[%emt 0:00:30]} 18. Qxd3 {[%emt 0:00:30]} Qxd3 {[%emt 0:00:30]} 19. Rxd3 {[%emt 0:00:30]} Rfe8 {[%emt 0:00:30]} 20. Rxb7 {[%emt 0:00:30]} Bxc4 {[%emt 0:00:30]} 21. Rdd7 {[%emt 0:00:30]} 1-0

[Event "XIII Mediterranean Championship 2023"]
[Site "Castell-Platja d Aro"]
[Date "2023.11.08"]
[Round "6.4"]
[White "Trepat Herranz, Joan"]
[Black "Garcia Ramos, Daniel"]
[Result "1/2-1/2"]
[ECO "B12"]
[WhiteElo "2385"]
[BlackElo "2455"]
[Annotator "RC"]
[PlyCount "56"]
[EventDate "2023.10.26"]
[EventType "swiss"]
[EventCountry "ESP"]
[SourceTitle "playchess.com"]
[Source "ChessBase"]
[SourceQuality "1"]
[TimeControl "5400+30"]

1. e4 {[%emt 0:00:04]} c6 {[%emt 0:00:06]} 2. d4 {[%emt 0:00:09]} d5 {[%emt 0:00:07]} 3. e5 {[%emt 0:00:19]} Bf5 {[%emt 0:00:09]} 4. h4 {[%emt 0:00:21]} h5 {[%emt 0:00:07]} 5. c4 {[%emt 0:00:23]} e6 {[%emt 0:00:37]} 6. Nc3 {[%emt 0:00:18]} dxc4 {[%emt 0:01:31]} 7. Bxc4 {[%emt 0:00:35]} Be7 {[%emt 0:01:07]} 8. Nge2 {[%emt 0:11:16]} Nd7 {[%emt 0:02:48]} 9. Ng3 {[%emt 0:01:05]} Bg6 {[%emt 0:10:14]} 10. Be2 {[%emt 0:00:41]} Qb6 {[%emt 0:04:58]} 11. a4 {[%emt 0:01:17]} a5 {[%emt 0:04:00]} 12. Be3 {[%emt 0:01:22]} Nh6 {[%emt 0:13:12]} 13. O-O {[%emt 0:22:36]} Rd8 {[%emt 0:04:56]} 14. Bxh5 {[%emt 0:12:01]} Nf8 {[%emt 0:20:35]} 15. Bxg6 {[%emt 0:24:17]} Nxg6 {[%emt 0:00:10]} 16. h5 {[%emt 0:00:15]} Nh4 {[%emt 0:00:25]} 17. d5 {[%emt 0:00:40]} Qxb2 {[%emt 0:16:13]} 18. Nge4 {[%emt 0:07:43]} N6f5 {[%emt 0:01:09]} 19. Ba7 {[%emt 0:03:43]} exd5 {[%emt 0:04:10]} 20. Rb1 {[%emt 0:00:44]} Qa3 {[%emt 0:00:07]} 21. Rb3 {[%emt 0:00:32]} dxe4 {[%emt 0:00:14]} 22. Qb1 {[%emt 0:00:13]} Rxh5 {[%emt 0:07:42]} 23. Rxa3 {[%emt 0:06:00]} Nf3+ {[%emt 0:00:50]} 24. gxf3 {[%emt 0:00:05]} Rg5+ {[%emt 0:00:04]} 25. Kh1 {[%emt 0:02:42]} Rh5+ {[%emt 0:00:23]} 26. Kg2 {[%emt 0:00:30]} Rg5+ {[%emt 0:00:04]} 27. Kh1 {[%emt 0:02:07]} Rh5+ {[%emt 0:00:10]} 28. Kg2 {[%emt 0:00:06]} Rg5+ {[%emt 0:00:03]} 1/2-1/2

[Event "XIII Mediterranean Championship 2023"]
[Site "Castell-Platja d Aro"]
[Date "2023.11.08"]
[Round "6.5"]
[White "Eugene, Floryan"]
[Black "Rojano Alfonso, Carlos"]
[Result "0-1"]
[ECO "E52"]
[WhiteElo "2426"]
[BlackElo "2207"]
[Annotator "RC"]
[PlyCount "58"]
[EventDate "2023.10.26"]
[EventType "swiss"]
[EventCountry "ESP"]
[SourceTitle "playchess.com"]
[Source "ChessBase"]
[SourceQuality "1"]
[TimeControl "5400+30"]

1. d4 {[%emt 0:00:04]} Nf6 {[%emt 0:00:28]} 2. c4 {[%emt 0:00:26]} e6 {[%emt 0:00:04]} 3. Nc3 {[%emt 0:00:05]} Bb4 {[%emt 0:00:06]} 4. e3 {[%emt 0:00:54]} b6 {[%emt 0:00:09]} 5. Bd2 {[%emt 0:08:07]} Bb7 {[%emt 0:06:46]} 6. Nf3 {[%emt 0:00:06]} O-O {[%emt 0:00:12]} 7. Bd3 {[%emt 0:00:04]} d5 {[%emt 0:05:21]} 8. cxd5 {[%emt 0:03:33]} exd5 {[%emt 0:00:30]} 9. O-O {[%emt 0:00:14]} Nbd7 {[%emt 0:01:40]} 10. Rc1 {[%emt 0:07:59]} a6 {[%emt 0:02:27]} 11. Ne5 {[%emt 0:02:59]} Nxe5 {[%emt 0:02:29]} 12. dxe5 {[%emt 0:00:06]} Nd7 {[%emt 0:00:11]} 13. f4 {[%emt 0:12:11]} Nc5 {[%emt 0:05:21]} 14. Bxh7+ {[%emt 0:06:33]} Kxh7 {[%emt 0:00:09]} 15. Qh5+ {[%emt 0:00:05]} Kg8 {[%emt 0:00:03]} 16. f5 {[%emt 0:00:10]} f6 {[%emt 0:05:38]} 17. e6 {[%emt 0:08:12]} Bxc3 {[%emt 0:12:53]} 18. Rxc3 {[%emt 0:08:14]} Bc8 {[%emt 0:09:43]} 19. e4 {[%emt 0:11:13]} Qe8 {[%emt 0:08:13]} 20. Qh4 {[%emt 0:00:50]} Bxe6 {[%emt 0:05:31]} 21. e5 {[%emt 0:20:36]} Bd7 {[%emt 0:06:41]} 22. Bh6 {[%emt 0:00:21]} Qxe5 {[%emt 0:01:49]} 23. Bxg7 {[%emt 0:01:48]} Kxg7 {[%emt 0:02:06]} 24. Qh5 {[%emt 0:00:27]} Rh8 {[%emt 0:01:30]} 25. Qg4+ {[%emt 0:02:02]} Kf8 {[%emt 0:00:19]} 26. Rg3 {[%emt 0:00:01]} Ke7 {[%emt 0:00:26]} 27. Qg7+ {[%emt 0:02:04]} Kd6 {[%emt 0:00:06]} 28. Rd1 {[%emt 0:00:05]} Rhg8 {[%emt 0:01:07]} 29. Qf7 {[%emt 0:00:25]} Rxg3 {[%emt 0:00:45]} 0-1

[Event "XIII Mediterranean Championship 2023"]
[Site "Castell-Platja d Aro"]
[Date "2023.11.08"]
[Round "6.6"]
[White "Jimenez Ruano, Adrian"]
[Black "Ayats Llobera, Gerard"]
[Result "1/2-1/2"]
[ECO "E52"]
[WhiteElo "2281"]
[BlackElo "2442"]
[Annotator "RC"]
[PlyCount "45"]
[EventDate "2023.10.26"]
[EventType "swiss"]
[EventCountry "ESP"]
[SourceTitle "playchess.com"]
[Source "ChessBase"]
[SourceQuality "1"]
[TimeControl "5400+30"]

1. d4 {[%emt 0:02:45]} e6 {[%emt 0:00:05]} 2. c4 {[%emt 0:01:25]} b6 {[%emt 0:00:04]} 3. Nc3 {[%emt 0:03:51]} Bb7 {[%emt 0:00:13]} 4. Nf3 {[%emt 0:02:08]} Bb4 {[%emt 0:00:11]} 5. Bd2 {[%emt 0:02:14]} Nf6 {[%emt 0:00:12]} 6. e3 {[%emt 0:01:28]} O-O {[%emt 0:00:06]} 7. Bd3 {[%emt 0:02:13]} d5 {[%emt 0:04:16]} 8. cxd5 {[%emt 0:00:44]} exd5 {[%emt 0:00:19]} 9. O-O {[%emt 0:02:20]} Nbd7 {[%emt 0:00:43]} 10. Ne5 {[%emt 0:11:31]} Nxe5 {[%emt 0:03:56]} 11. dxe5 {[%emt 0:00:02]} Nd7 {[%emt 0:00:02]} 12. e6 {[%emt 0:09:03]} fxe6 {[%emt 0:03:50]} 13. Qg4 {[%emt 0:00:16]} Bd6 {[%emt 0:03:30]} 14. Qxe6+ {[%emt 0:04:55]} Kh8 {[%emt 0:00:02]} 15. Qh3 {[%emt 0:01:48]} Nf6 {[%emt 0:03:12]} 16. f3 {[%emt 0:09:28]} Qe7 {[%emt 0:03:55]} 17. Kh1 {[%emt 0:05:09]} Rae8 {[%emt 0:04:14]} 18. Rae1 {[%emt 0:03:43]} Be5 {[%emt 0:05:20]} 19. Qh4 {[%emt 0:13:53]} Qf7 {[%emt 0:01:12]} 20. b4 {[%emt 0:06:07]} Rg8 {[%emt 0:21:19]} 21. b5 {[%emt 0:03:54]} Ref8 {[%emt 0:03:21]} 22. Qg5 {[%emt 0:01:17]} Re8 {[%emt 0:01:49]} 23. Ne2 {[%emt 0:01:08]} 1/2-1/2